bitfinex-derivatives/quotes_ETHF0:USTF0_20250416
["timestamp","ask_amount","ask_price","bid_price","bid_amount"]
[1744766772599,1.2522,1597.4,1597.3,1.25221]
[1744766772793,1.25209,1597.5,1597.4,1.25213]
[1744766773201,4.5622,1597.6,1597.4,1.25207]
[1744766773400,5.81417,1597.6,1597.5,1.626]
[1744766774103,1.25197,1597.6,1597.5,2.87799]
[1744766775700,1.25191,1597.7,1597.6,1.2519]
[1744766775902,1.25196,1597.7,1597.6,1.25194]
[1744766776093,1.26125878,1597.8,1597.7,1.25189]
[1744766776705,1.25189,1597.7,1597.6,2.85581]
[1744766777106,1.61618878,1597.8,1597.7,1.25189]
[1744766777297,1.61618878,1597.8,1597.7,2.85579]
[1744766777603,2.86806878,1597.8,1597.7,1.6039]
[1744766778196,2.86806878,1597.8,1597.7,43.65579]
[1744766778398,2.86806878,1597.8,1597.7,42.4039]
[1744766779100,2.86806878,1597.8,1597.7,43.65579]
[1744766780406,2.86806878,1597.8,1597.7,42.4039]
[1744766780903,6.07586878,1597.8,1597.7,40.8]
[1744766781507,11.07586878,1597.8,1597.7,40.8]
[1744766782402,6.07586878,1597.8,1597.7,40.8]
[1744766783809,1.25205,1597.5,1597.4,4.674]
[1744766784006,1.25205,1597.5,1597.4,1.7389]
[1744766784307,1.25205,1597.5,1597.1,0.00938878]
[1744766784308,1.25229,1597.2,1597.1,0.00938878]
[1744766784503,1.25229,1597.2,1597.1,3.00064878]
[1744766784904,1.25229,1597.2,1597.1,43.80064878]
[1744766785101,2.94146,1597.3,1597.2,1.25229]
[1744766785302,1.25226,1597.3,1597.2,1.25229]
[1744766785502,1.25226,1597.3,1597.2,2.99119]
[1744766786813,1.25226,1597.3,1597.2,1.7389]
[1744766787108,1.25229,1597.2,1597.1,40.80938878]
[1744766787299,4.46009,1597.2,1597.1,0.00938878]
[1744766788403,9.13409,1597.2,1597.1,0.00938878]
[1744766788804,14.13409,1597.2,1597.1,0.00938878]
[1744766789006,18.8178,1597.2,1596.6,1.25275]
[1744766789210,1.25276,1596.7,1596.6,2.98565]
[1744766789408,1.25276,1596.7,1596.6,43.78565]
[1744766791205,2.98645878,1596.8,1596.7,1.25268]
[1744766791405,2.98645878,1596.8,1596.7,1.7019]
[1744766791605,2.98645878,1596.8,1596.7,2.95458]
[1744766791903,2.98645878,1596.8,1596.7,1.7019]
[1744766792099,4.40235878,1596.8,1596.7,1.7019]
[1744766793115,4.40235878,1596.8,1596.7,2.95458]
[1744766793309,4.40235878,1596.8,1596.7,1.7019]
[1744766794107,2.67795878,1596.8,1596.7,1.7019]
[1744766794313,0.00938878,1596.8,1596.7,2.95458]
[1744766795016,0.00938878,1596.8,1596.7,43.75458]
[1744766795314,1.26198878,1596.8,1596.7,43.75458]
[1744766795717,7.18821,1597.3,1597.2,1.25229]
[1744766795910,1.25221,1597.3,1597.2,1.25229]
[1744766796110,9.62090091,1597.4,1597.3,1.25221]
[1744766796715,9.62090091,1597.4,1597.3,1.6352]
[1744766797014,8.36873091,1597.4,1597.3,2.88741]
[1744766797409,1.25213,1597.4,1597.3,2.88741]
[1744766797813,0.00938878,1597.5,1597.4,1.25213]
[1744766798015,0.00938878,1597.5,1597.4,2.88733]
[1744766798211,1.26143878,1597.5,1597.4,1.6352]
[1744766798515,1.26143878,1597.5,1597.4,2.88733]
[1744766800720,0.00938878,1597.5,1597.4,2.88733]
[1744766801619,1.26143878,1597.5,1597.4,2.88733]
[1744766802018,0.00938878,1597.5,1597.4,2.88733]
[1744766802621,1.26143878,1597.5,1597.4,2.88733]
[1744766802816,0.00938878,1597.5,1597.4,2.88733]
[1744766803119,1.26143878,1597.5,1597.4,2.88733]
[1744766804120,1.26143878,1597.5,1597.4,1.6352]
[1744766804417,1.25235,1597.2,1597.1,1.25233]
[1744766806127,1.25236,1597.1,1597.0,2.85808]
[1744766806525,1.25236,1597.1,1597.0,2.8581]
[1744766807625,8.2078,1597.1,1596.7,44.0078]
[1744766807819,1.25252,1596.9,1596.8,1.6057]
[1744766808420,1.25252,1596.9,1596.8,2.8583]
[1744766809117,4.40142,1597.0,1596.9,1.25252]
[1744766809322,4.40142,1597.0,1596.9,1.618]
[1744766809523,1.25243,1597.1,1597.0,1.25244]
[1744766810931,1.25244,1597.0,1596.9,2.87046]
[1744766811530,1.25244,1597.0,1596.9,2.87052]
[1744766812034,1.25244,1597.0,1596.9,1.618]
[1744766812235,1.25244,1597.0,1596.9,2.87052]
[1744766812639,1.25244,1597.0,1596.9,1.618]
[1744766813045,1.2526,1596.8,1596.7,42.05263]
[1744766813339,1.2526,1596.8,1596.7,43.72653]
[1744766817140,1.2526,1596.8,1596.7,42.4739]
[1744766817539,1.2526,1596.8,1596.7,43.72658]
[1744766821241,2.74459,1596.9,1596.8,1.2526]
[1744766821440,2.74459,1596.9,1596.8,2.8895]
[1744766822143,2.74459,1596.9,1596.8,1.6369]
[1744766824037,2.74459,1596.9,1596.8,2.8895]
[1744766824547,3.1308,1597.2,1596.9,1.25252]
[1744766824843,1.25242,1597.1,1597.0,1.25236]
[1744766825045,1.25242,1597.1,1597.0,4.50746]
[1744766827049,1.25242,1597.1,1597.0,3.2551]
[1744766827447,1.25242,1597.1,1597.0,4.50754]
[1744766828851,2.70227,1597.3,1597.2,1.25229]
[1744766829040,1.2522,1597.4,1597.3,1.25216]
[1744766830251,1.25219,1597.4,1597.3,1.25215]
[1744766830749,1.25219,1597.4,1597.3,1.6519]
[1744766830949,1.25219,1597.4,1597.3,2.90411]
[1744766832853,0.00938878,1597.5,1597.4,1.25213]
[1744766833047,1.26143878,1597.5,1597.4,4.38693]
[1744766833450,1.26143878,1597.5,1597.4,3.1348]
[1744766833754,1.26143878,1597.5,1597.4,1.6079]
[1744766834251,2.93593878,1597.5,1597.4,1.6079]
[1744766834555,1.25213,1597.4,1597.3,3.2078]
[1744766834745,1.25221,1597.3,1597.2,1.6079]
[1744766835052,1.5022,1597.3,1597.0,3.13097]
[1744766835256,1.25232,1597.2,1597.1,1.25229]
[1744766835551,1.25232,1597.2,1597.1,2.82359]
[1744766836549,2.75448,1597.3,1597.2,1.25229]
[1744766836850,2.75448,1597.3,1597.2,2.82359]
[1744766837646,1.6745,1597.4,1597.3,1.25213]
[1744766837647,1.25217,1597.4,1597.3,1.25213]
[1744766837851,1.25217,1597.4,1597.3,2.82343]
[1744766838054,1.25217,1597.4,1597.3,4.24283]
[1744766838247,1.26149878,1597.5,1597.4,1.25213]
[1744766838454,1.26149878,1597.5,1597.4,2.83163]
[1744766838752,1.26149878,1597.5,1597.4,1.5795]
[1744766839559,2.84169878,1597.5,1597.4,1.5795]
[1744766839851,1.25236,1597.2,1597.1,1.25233]
[1744766840256,2.71446,1597.2,1597.1,1.25233]
[1744766840449,3.13033,1597.4,1597.2,1.25221]
[1744766840646,1.25225,1597.3,1597.2,1.25221]
[1744766841041,4.60167878,1597.5,1597.1,6.3387]
[1744766841251,1.25221,1597.3,1597.2,2.83171]
[1744766841955,1.25221,1597.3,1597.2,1.5795]
[1744766842751,2.98321,1597.3,1597.2,1.5795]
[1744766844455,4.67928878,1597.5,1597.2,1.5795]
[1744766844657,5.93138878,1597.5,1597.4,1.25213]
[1744766844950,0.00938878,1597.5,1597.4,1.25213]
[1744766845157,6.24775374,1597.7,1597.6,1.25197]
[1744766845750,6.24775374,1597.7,1597.6,2.98197]
[1744766846549,7.49964374,1597.7,1597.6,2.98197]
[1744766847352,7.49964374,1597.7,1597.6,1.73]
[1744766847555,9.17944374,1597.7,1597.6,1.73]
[1744766847750,9.17944374,1597.7,1597.6,2.98197]
[1744766848455,9.17944374,1597.7,1597.6,1.73]
[1744766848656,1.25197,1597.6,1597.5,0.00938878]
[1744766848850,4.46377,1597.6,1597.5,0.00938878]
[1744766849050,14.08977,1597.6,1597.5,0.00938878]
[1744766849245,14.08977,1597.6,1597.1,2.94346]
[1744766849246,1.25229,1597.2,1597.1,2.94346]
[1744766850260,2.78290878,1597.3,1597.2,1.25229]
[1744766850456,2.78290878,1597.3,1597.2,2.89999]
[1744766851453,2.78290878,1597.3,1597.2,1.6477]
[1744766851649,2.78290878,1597.3,1597.2,2.89999]
[1744766856257,1.53068878,1597.3,1597.2,2.89999]
[1744766856560,0.00938878,1597.3,1597.2,2.89999]
[1744766857056,1.26159878,1597.3,1597.2,1.6477]
[1744766857259,1.25236,1597.1,1597.0,1.26176878]
[1744766857459,1.25236,1597.1,1597.0,3.00306878]
[1744766857660,2.75755,1597.2,1597.1,1.25236]
[1744766857857,2.75755,1597.2,1597.1,2.99366]
[1744766858459,2.75755,1597.2,1597.1,1.7413]
[1744766858971,2.75755,1597.2,1597.1,2.99366]
[1744766860457,2.75755,1597.2,1597.1,6.20146]
[1744766861157,1.26162878,1597.3,1597.2,1.25229]
[1744766861358,1.26162878,1597.3,1597.2,2.92469]
[1744766862065,0.00938878,1597.3,1597.2,2.92469]
[1744766862454,1.26159878,1597.3,1597.2,2.92469]
[1744766862654,0.00938878,1597.3,1597.2,2.92469]
[1744766864468,1.26159878,1597.3,1597.2,2.92469]
[1744766864767,1.25185,1597.8,1597.2,11.2974]
[1744766864968,11.49795091,1598.0,1597.6,1.25197]
[1744766864969,7.64025374,1597.9,1597.6,1.25197]
[1744766865268,7.64025374,1597.9,1597.8,1.25182]
[1744766865470,8.89199374,1597.9,1597.8,1.25182]
[1744766865664,7.64025374,1597.9,1597.8,2.99272]
[1744766865866,6.24775374,1597.9,1597.8,2.99272]
[1744766866169,6.24775374,1597.9,1597.8,43.79272]
[1744766868069,7.49949374,1597.9,1597.8,43.79272]
[1744766868261,7.49949374,1597.9,1597.8,42.5409]
[1744766868465,2.66714,1597.9,1597.8,42.5409]
[1744766868763,2.66714,1597.9,1597.8,40.8]
[1744766868969,4.13294,1597.9,1597.8,40.8]
[1744766871371,4.13294,1597.9,1597.8,42.05182]
[1744766871670,4.13294,1597.9,1597.8,43.67092]
[1744766871866,2.66714,1597.9,1597.8,43.67092]
[1744766872070,1.4154,1597.9,1597.8,45.15922]
[1744766872359,1.25213,1597.4,1597.3,3.2078]
[1744766872874,1.25213,1597.4,1597.3,44.0078]
[1744766873263,1.25213,1597.4,1597.3,40.8]
[1744766873572,1.25229,1597.2,1597.1,8.19850517]
[1744766873873,1.25229,1597.2,1597.1,50.65470517]
[1744766874573,1.25229,1597.2,1597.1,51.90706517]
[1744766874769,1.25226,1597.3,1597.2,1.25229]
[1744766874980,1.25226,1597.3,1597.2,2.83619]
[1744766875274,1.25226,1597.3,1597.2,1.5839]
[1744766875573,1.25226,1597.3,1597.2,2.83619]
[1744766876077,1.25226,1597.3,1597.2,1.5839]
[1744766876777,1.25229,1597.2,1597.1,40.8]
[1744766876968,1.25229,1597.2,1597.1,42.3839]
[1744766878476,1.25229,1597.2,1597.1,43.63626]
[1744766878778,1.25229,1597.2,1597.1,42.3839]
[1744766878967,1.25236,1597.1,1597.0,0.00938878]
[1744766879173,9.02976,1597.1,1597.0,0.00938878]
[1744766879378,12.23756,1597.1,1597.0,0.00938878]
[1744766879875,17.23756,1597.1,1597.0,8.78e-06]
[1744766880378,18.72276,1597.1,1597.0,8.78e-06]
[1744766885082,24.65876,1597.1,1597.0,8.78e-06]
[1744766886183,25.12930383,1597.1,1597.0,8.78e-06]
[1744766888382,31.37705757,1597.1,1597.0,8.78e-06]
[1744766888993,21.28251374,1597.1,1597.0,8.78e-06]
[1744766889277,16.37841374,1597.1,1597.0,8.78e-06]
[1744766889478,18.07851374,1597.1,1597.0,8.78e-06]
[1744766889683,25.91031374,1597.1,1597.0,8.78e-06]
[1744766889884,22.70251374,1597.1,1597.0,8.78e-06]
[1744766891387,21.00241374,1597.1,1597.0,8.78e-06]
[1744766891589,21.00341374,1597.1,1597.0,8.78e-06]
[1744766892493,10.13066,1597.1,1597.0,8.78e-06]
[1744766892688,14.75566,1597.1,1597.0,8.78e-06]
[1744766894082,8.81966,1597.1,1597.0,8.78e-06]
[1744766894284,12.02746,1597.1,1597.0,8.78e-06]
[1744766896384,5.87736,1597.1,1597.0,8.78e-06]
[1744766897388,10.78666,1597.1,1597.0,8.78e-06]
[1744766898394,6.26287,1596.9,1596.5,40.8]
[1744766898587,1.25276,1596.6,1596.5,42.3463]
[1744766898892,1.25299,1596.3,1596.2,1.4167]
[1744766899089,1.25299,1596.3,1596.2,2.66977]
[1744766899289,1.25299,1596.3,1596.2,6.4167]
[1744766899491,1.25299,1596.3,1596.2,1.4167]
[1744766899693,1.25299,1596.3,1596.2,47.2167]
[1744766900089,1.25299,1596.3,1596.2,42.2167]
[1744766900291,1.25299,1596.3,1596.2,43.7555]
[1744766901994,1.25299,1596.3,1596.2,45.4813]
[1744766904395,4.46079,1596.3,1596.2,1.7258]
[1744766904591,4.46079,1596.3,1596.2,3.2929]
[1744766905587,4.46079,1596.3,1596.2,1.7258]
[1744766907097,6.11199,1596.3,1596.2,1.7258]
[1744766908090,6.11199,1596.3,1596.1,0.00938878]
[1744766908091,1.25307,1596.2,1596.1,0.00938878]
[1744766908295,9.05617,1596.2,1596.1,0.00938878]
[1744766908792,9.05617,1596.2,1596.1,8.78e-06]
[1744766910294,1.25346,1595.7,1595.6,1.5282]
[1744766910496,5.87946,1595.7,1595.6,43.58174]
[1744766910687,1.25345,1595.8,1595.7,1.25343]
[1744766910887,3.13307,1596.1,1595.9,1.25329]
[1744766911199,1.25315,1596.1,1596.0,3.2549]
[1744766911393,5.87915,1596.1,1596.0,3.2549]
[1744766911590,9.08695,1596.1,1596.0,3.2549]
[1744766911899,10.78235,1596.1,1596.0,1.7267]
[1744766912090,10.78235,1596.1,1595.9,0.00938878]
[1744766912091,1.25323,1596.0,1595.9,0.00938878]
[1744766912295,2.94863,1596.0,1595.9,0.00938878]
[1744766912793,1.25323,1596.0,1595.9,1.57898878]
[1744766917405,2.97873,1596.0,1595.9,1.57898878]
[1744766918907,2.97873,1596.0,1595.9,0.00938878]
[1744766920016,2.97873,1596.0,1595.9,1.70458878]
[1744766923925,1.25323,1596.0,1595.9,1.70458878]
[1744766928221,1.521,1596.2,1595.9,9.83785878]
[1744766928426,1.25307,1596.2,1596.1,1.25314]
[1744766928730,12.28568878,1596.3,1596.0,4.54286]
[1744766928731,1.25315,1596.1,1596.0,4.54286]
[1744766929125,1.25315,1596.1,1596.0,4.54293]
[1744766929723,1.25313,1596.2,1596.0,3.2897]
[1744766929924,1.25313,1596.2,1596.1,2.84461]
[1744766930827,1.26239878,1596.3,1596.2,1.25307]
[1744766931126,0.00938878,1596.3,1596.2,4.28817]
[1744766931326,0.00938878,1596.3,1596.2,9.28817]
[1744766931534,1.26237878,1596.3,1596.2,4.28817]
[1744766932227,0.00938878,1596.3,1596.2,9.28817]
[1744766932527,1e-08,1596.3,1596.2,13.91317]
[1744766933120,1e-08,1596.3,1596.2,54.71317]
[1744766939338,1e-08,1596.3,1596.2,49.71317]
[1744766941842,1.25299001,1596.3,1596.2,45.08817]
[1744766942940,1e-08,1596.3,1596.2,45.08817]
[1744766946444,1.25299001,1596.3,1596.2,45.08817]
[1744766946745,1e-08,1596.3,1596.2,45.08817]
[1744766947947,1.25299001,1596.3,1596.2,45.08817]
[1744766948845,1e-08,1596.3,1596.2,45.08817]
[1744766949248,1.25299001,1596.3,1596.2,45.08817]
[1744766949647,1e-08,1596.3,1596.2,45.08817]
[1744766953549,1.25299001,1596.3,1596.2,45.08817]
[1744766953850,1.25299001,1596.3,1596.2,43.64457]
[1744766954251,4.29069001,1596.3,1596.2,43.64457]
[1744766955740,4.29069001,1596.3,1596.2,40.8]
[1744766956144,4.29069001,1596.3,1596.2,42.05307]
[1744766958752,3.03770001,1596.3,1596.2,42.05307]
[1744766958954,3.03770001,1596.3,1596.2,43.78517]
[1744766959551,3.03770001,1596.3,1596.2,45.24647]
[1744766959748,4.29069001,1596.3,1596.2,45.24647]
[1744766959950,1e-08,1596.3,1596.2,45.24647]
[1744766962160,1e-08,1596.3,1596.2,50.24647]
[1744766966055,1e-08,1596.3,1596.2,49.86647]
[1744766967956,1.25299001,1596.3,1596.2,49.86647]
[1744766968154,2.65979001,1596.3,1596.2,49.86647]
[1744766968358,2.65979001,1596.3,1596.2,48.40517]
[1744766968554,2.65979001,1596.3,1596.2,46.67307]
[1744766968756,9.29859001,1596.3,1596.2,45.42]
[1744766968960,9.29859001,1596.3,1596.2,40.8]
[1744766970667,1.25315,1596.1,1596.0,9.43387532]
[1744766970961,1.25315,1596.1,1596.0,1.25323]
[1744766971160,1.25315,1596.1,1596.0,42.05323]
[1744766971359,2.95405,1596.1,1596.0,40.8]
[1744766972457,7.95405,1596.1,1596.0,40.8]
[1744766972963,1.25323,1596.0,1595.9,0.00938878]
[1744766973152,2.84373,1596.0,1595.9,0.00938878]
[1744766973353,7.84373,1596.0,1595.9,40.80938878]
[1744766974662,2.84373,1596.0,1595.9,40.80938878]
[1744766976566,2.84373,1596.0,1595.9,42.06269878]
[1744766976860,1.442,1596.2,1596.1,1.25315]
[1744766977065,6.21822905,1596.3,1596.2,1.25307]
[1744766977368,7.47121905,1596.3,1596.2,1.5808]
[1744766977569,1.25307,1596.2,1596.1,9.08189]
[1744766977759,2.83707,1596.2,1596.1,10.66269]
[1744766977962,2.83707,1596.2,1596.1,6.04169]
[1744766978364,10.49608905,1596.3,1596.2,1.25307]
[1744766978666,7.75712905,1596.3,1596.2,1.25307]
[1744766978860,1.5389,1596.3,1596.2,2.83617]
[1744766979570,2.79189,1596.3,1596.2,2.83617]
[1744766979967,1.25307,1596.2,1596.1,3.2078]
[1744766980272,2.93147,1596.2,1596.1,3.2078]
[1744766982966,7.93147,1596.2,1596.1,3.2078]
[1744766983168,1.25323,1596.0,1595.9,40.80938878]
[1744766983770,4.40343,1596.0,1595.9,42.06269878]
[1744766984168,2.76423,1596.0,1595.9,42.06269878]
[1744766987176,4.34713,1596.0,1595.9,42.06269878]
[1744766988976,1.511,1596.0,1595.9,42.06269878]
[1744766989280,2.78382,1596.1,1596.0,1.25323]
[1744766989480,1.25322,1596.1,1596.0,2.85033]
[1744766989773,1.25322,1596.1,1596.0,4.33733]
[1744766991677,2.71913,1596.2,1596.1,1.25315]
[1744766991877,2.71913,1596.2,1596.1,2.84075]
[1744766992777,2.71913,1596.2,1596.1,1.5876]
[1744766992979,4.37533,1596.2,1596.1,1.5876]
[1744766993479,1.25323,1596.0,1595.9,42.06261878]
[1744766993668,1.25323,1596.0,1595.9,43.68171878]
[1744766994482,1.25313,1596.2,1596.1,1.25306]
[1744766994680,1.25323,1596.1,1596.0,2.87228]
[1744766996985,1.25323,1596.1,1596.0,1.6191]
[1744766997176,1.25323,1596.0,1595.9,40.80938878]
[1744766997679,2.95503,1596.0,1595.9,42.06269878]
[1744766997879,2.95503,1596.0,1595.9,43.78789878]
[1744766998584,1.25323,1596.0,1595.9,43.78789878]
[1744767000274,1.25323,1596.0,1595.9,42.53458878]
[1744767000482,7.84553,1596.0,1595.9,1e-08]
[1744767000677,7.46253,1596.0,1595.9,1e-08]
[1744767000884,1.25323,1596.0,1595.9,40.80000001]
[1744767001087,2.84553,1596.0,1595.9,40.80000001]
[1744767001372,7.84553,1596.0,1595.9,40.80000001]
[1744767001578,7.84553,1596.0,1595.9,1e-08]
[1744767001786,2.84553,1596.0,1595.9,1e-08]
[1744767002087,2.84553,1596.0,1595.9,40.80000001]
[1744767002987,7.84553,1596.0,1595.9,40.80000001]
[1744767003786,7.84553,1596.0,1595.9,1e-08]
[1744767003988,2.84553,1596.0,1595.9,1e-08]
[1744767006885,13.78153,1596.0,1595.9,1e-08]
[1744767007081,1.2537,1595.4,1595.3,1.7171]
[1744767007386,1.25386,1595.2,1595.1,10.88428532]
[1744767007782,1.25368,1595.5,1595.4,1.25364]
[1744767007982,1.25368,1595.5,1595.4,42.05364]
[1744767008383,1.25368,1595.5,1595.4,43.50334]
[1744767008692,1.26298878,1595.6,1595.5,1.25362]
[1744767008887,1.26298878,1595.6,1595.5,1.7171]
[1744767009181,1.25362,1595.5,1595.4,42.2497]
[1744767009385,4.48812,1595.5,1595.4,43.8207]
[1744767009590,4.48812,1595.5,1595.4,40.8]
[1744767009780,4.48812,1595.5,1595.3,0.00938878]
[1744767009781,1.2537,1595.4,1595.3,0.00938878]
[1744767009977,4.3972,1595.4,1595.3,0.00938878]
[1744767010490,4.3972,1595.4,1595.3,40.80938878]
[1744767010881,9.0102,1595.4,1595.3,40.80938878]
[1744767011078,9.0102,1595.4,1595.3,0.00938878]
[1744767011284,14.0102,1595.4,1595.3,0.00938878]
[1744767011480,9.0102,1595.4,1595.3,0.00938878]
[1744767014489,9.0102,1595.4,1595.3,8.78e-06]
[1744767015596,4.3972,1595.4,1595.3,8.78e-06]
[1744767015781,1.5489,1595.5,1595.3,1.25378878]
[1744767015984,1.2537,1595.4,1595.3,1.25378878]
[1744767016188,1.2537,1595.4,1595.3,8.78e-06]
[1744767017790,2.7314,1595.4,1595.3,8.78e-06]
[1744767018695,4.3333,1595.4,1595.3,8.78e-06]
[1744767020101,1.2537,1595.4,1595.3,8.78e-06]
[1744767022597,1.2537,1595.4,1595.3,1.25378878]
[1744767023500,1.2537,1595.4,1595.3,8.78e-06]
[1744767025597,1.2537,1595.4,1595.3,1.25378878]
[1744767026904,1.2537,1595.4,1595.3,8.78e-06]
[1744767030098,2.6228,1595.4,1595.3,8.78e-06]
[1744767030602,1.2537,1595.4,1595.3,8.78e-06]
[1744767031209,1.2537,1595.4,1595.3,1.25378878]
[1744767033608,1.2537,1595.4,1595.3,8.78e-06]
[1744767033911,2.9744,1595.4,1595.3,8.78e-06]
[1744767034706,2.9744,1595.4,1595.3,1.58460878]
[1744767035208,2.9744,1595.4,1595.3,8.78e-06]
[1744767036699,7.5894,1595.4,1595.3,8.78e-06]
[1744767037094,5.8687,1595.4,1595.3,8.78e-06]
[1744767037505,7.5203,1595.4,1595.3,8.78e-06]
[1744767039100,1.25401,1595.0,1594.9,40.8]
[1744767039806,2.64791,1595.0,1594.9,40.8]
[1744767040001,4.79952,1595.2,1594.9,47.05406]
[1744767040304,1.25394,1595.1,1595.0,2.9648]
[1744767040806,1.25401,1595.0,1594.9,40.8]
[1744767041006,4.07231,1595.0,1594.9,42.3913]
[1744767041208,1.25409,1594.9,1594.8,0.00938878]
[1744767041405,2.91889,1594.9,1594.8,8.78e-06]
[1744767041599,7.91889,1594.9,1594.8,8.78e-06]
[1744767043208,8.42180868,1594.9,1594.8,8.78e-06]
[1744767044502,7.91889,1594.9,1594.8,8.78e-06]
[1744767044706,2.91889,1594.9,1594.8,8.78e-06]
[1744767045102,7.91889,1594.9,1594.8,8.78e-06]
[1744767045503,2.91889,1594.9,1594.8,8.78e-06]
[1744767050112,1.25409,1594.9,1594.8,8.78e-06]
[1744767050319,1.25409,1594.9,1594.8,4.46197878]
[1744767050611,1.25409,1594.9,1594.8,4.84550878]
[1744767051010,1.25409,1594.9,1594.8,6.09967878]
[1744767051313,1.25409,1594.9,1594.8,11.09964878]
[1744767051509,1.25409,1594.9,1594.8,4.84550878]
[1744767051705,1.25409,1594.9,1594.8,8.78e-06]
[1744767052108,4.36529,1594.9,1594.8,8.78e-06]
[1744767059317,1.25464,1594.2,1594.1,1.3585]
[1744767059515,1.25488,1593.9,1593.8,7.8208]
[1744767059715,1.25488,1593.9,1593.8,49.86654313]
[1744767059923,1.25488,1593.9,1593.8,54.86654313]
[1744767060608,0.00938878,1594.0,1593.9,1.25488]
[1744767060814,0.00017191,1594.0,1593.9,7.66398]
[1744767061016,1.25446,1594.5,1594.0,6.27402]
[1744767061210,1.25446,1594.5,1594.4,3.2078]
[1744767061406,1.25446,1594.5,1594.4,8.2078]
[1744767061611,1.25446,1594.5,1594.4,9.46224]
[1744767061820,1.25446,1594.5,1594.4,50.26224]
[1744767062020,1.26377878,1594.6,1594.5,1.25441]
[1744767062321,1.26377878,1594.6,1594.5,1.4091]
[1744767062522,1.26377878,1594.6,1594.5,9.25041]
[1744767063025,0.00938878,1594.6,1594.5,9.25041]
[1744767063221,1.26371878,1594.6,1594.5,9.25041]
[1744767064123,1.26371878,1594.6,1594.5,10.60151]
[1744767064524,1.26371878,1594.6,1594.5,9.3471]
[1744767066322,1.26371878,1594.6,1594.5,4.3471]
[1744767067319,1.26371878,1594.6,1594.5,5.60151]
[1744767067624,1.26371878,1594.6,1594.5,4.3471]
[1744767068527,1.25441,1594.5,1594.4,44.01718878]
[1744767068719,1.25441,1594.5,1594.4,40.80938878]
[1744767069727,12.14431,1594.5,1594.4,40.80938878]
[1744767070324,17.14431,1594.5,1594.4,8.78e-06]
[1744767070517,1.2548,1594.0,1593.8,15.47876798]
[1744767070824,1.2548,1594.0,1593.9,50.41594532]
[1744767072224,1.2548,1594.0,1593.9,48.98064532]
[1744767072423,1.2548,1594.0,1593.9,40.8]
[1744767072935,2.8777,1594.0,1593.9,40.8]
[1744767073338,1.25488,1593.9,1593.8,0.00938878]
[1744767073532,1.25488,1593.9,1593.8,0.00017191]
[1744767073837,1.25488,1593.9,1593.8,47.05513191]
[1744767074137,1.25488,1593.9,1593.8,40.80017191]
[1744767074724,2.84738,1593.9,1593.8,40.80017191]
[1744767074934,6.05518,1593.9,1593.8,0.00017191]
[1744767075529,12.93751,1593.9,1593.5,8.18064532]
[1744767075730,4.46292,1593.6,1593.5,8.17984532]
[1744767075935,9.07292,1593.6,1593.5,8.17984532]
[1744767076135,1.25512,1593.6,1593.5,8.17984532]
[1744767076435,1.25512,1593.6,1593.5,10.89513532]
[1744767076625,1.25512,1593.6,1593.5,9.63994532]
[1744767076825,8.2078,1593.6,1593.3,16.00794512]
[1744767077030,4.46307,1593.4,1593.3,16.00794512]
[1744767077332,4.46307,1593.4,1593.3,5.75e-06]
[1744767077636,6.05607,1593.4,1593.3,5.75e-06]
[1744767077938,4.8008,1593.4,1593.2,0.00613629]
[1744767078139,2.84835,1593.3,1593.2,0.00613629]
[1744767082242,1.25535,1593.3,1593.2,0.00613629]
[1744767082443,1.25535,1593.3,1593.2,1.30263629]
[1744767084638,1.25535,1593.3,1593.2,2.87923629]
[1744767086338,2.93565,1593.3,1593.2,2.87923629]
[1744767086941,2.93565,1593.3,1593.2,0.00613629]
[1744767088841,1.25535,1593.3,1593.2,1.26156629]
[1744767089041,1.25535,1593.3,1593.2,1.26513629]
[1744767089435,1.25535,1593.3,1593.2,4.14826629]
[1744767090043,1.25535,1593.3,1593.2,2.89283629]
[1744767090550,1.25533,1593.4,1593.3,1.25527]
[1744767090748,1.25533,1593.4,1593.3,2.88297]
[1744767091641,1.25533,1593.4,1593.3,7.88297]
[1744767092037,3.14706878,1593.7,1593.3,6.6277]
[1744767092245,3.14706878,1593.7,1593.4,1.6518]
[1744767092246,1.25519,1593.5,1593.4,1.6518]
[1744767092447,1.25519,1593.5,1593.4,2.90707]
[1744767092644,1.25519,1593.5,1593.4,7.90707]
[1744767093652,1.25519,1593.5,1593.4,1.6518]
[1744767093840,1.25535,1593.3,1593.2,4.47293629]
[1744767094248,1.25535,1593.3,1593.2,6.12473629]
[1744767094850,1.25535,1593.3,1593.2,4.17236629]
[1744767095354,1.25535,1593.3,1593.2,2.91693629]
[1744767095545,1.25535,1593.3,1593.2,4.17236629]
[1744767098655,1.25535,1593.3,1593.2,2.91693629]
[1744767099457,3.13783,1593.6,1593.2,14.26327629]
[1744767099661,1.25525,1593.5,1593.4,1.25521]
[1744767100254,1.25517,1593.6,1593.5,1.25514]
[1744767100657,1.26443878,1593.7,1593.6,1.25512]
[1744767100856,1.25517,1593.6,1593.5,1.25513]
[1744767101052,1.25517,1593.6,1593.5,2.57093]
[1744767103357,1.26450878,1593.7,1593.6,1.25512]
[1744767104658,1.25512,1593.6,1593.5,2.57093]
[1744767104858,2.95670878,1593.7,1593.6,1.25512]
[1744767105057,1.25481,1594.1,1594.0,1.25475]
[1744767105262,2.94692,1594.2,1594.1,1.25472]
[1744767105558,4.15888222,1594.5,1594.0,6.34474]
[1744767105861,1.25463,1594.3,1594.2,1.25459]
[1744767106056,1.25464,1594.2,1594.1,40.8]
[1744767106263,1.25464,1594.2,1594.1,42.06410878]
[1744767107762,1.6922,1594.3,1594.2,1.25464]
[1744767107763,1.25461,1594.3,1594.2,1.25464]
[1744767109063,2.97213878,1594.4,1594.3,1.25456]
[1744767109364,1.25461,1594.3,1594.2,1.25458]
[1744767110060,1.26393878,1594.4,1594.3,1.25456]
[1744767110562,0.00938878,1594.4,1594.3,1.25456]
[1744767110749,1e-08,1594.4,1594.3,12.14246]